fUSD/lending_fUSD_20241110
["ID","MTS","AMOUNT","RATE_DAILY","PERIOD"]
[341878811,1731263444774,-326.54200056,0.00014999,2]
[341878812,1731263444783,-44.54696278,0.00014999,2]
[341878813,1731263444935,-500.0,0.00013698,2]
[341878814,1731263444945,-500.0,0.00014774,2]
[341878815,1731263444954,-821.48303722,0.00014999,2]
[341878816,1731263444964,-500.0,0.00014999,2]
[341878817,1731263444976,-500.0,0.00014999,2]
[341878818,1731263444985,-266.94,0.00014999,2]
[341878819,1731263444995,-299.17554908,0.00014999,2]
[341878820,1731263445004,-500.0,0.00014999,2]
[341878821,1731263445015,-500.0,0.00014999,2]
[341878822,1731263445025,-500.0,0.00014999,2]
[341878823,1731263445036,-500.0,0.00014999,2]
[341878824,1731263445047,-500.0,0.00014999,2]
[341878825,1731263445058,-500.0,0.00014999,2]
[341878826,1731263445069,-500.0,0.00014999,2]
[341878827,1731263445079,-500.0,0.00014999,2]
[341878828,1731263445089,-500.0,0.00014999,2]
[341878829,1731263445099,-51.65265072,0.00014999,2]
[341878830,1731263445111,-448.34734928,0.00014999,2]
[341878831,1731263445120,-589.2618166,0.00014999,2]
[341878832,1731263445130,-500.0,0.00014999,2]
[341878833,1731263445139,-500.0,0.00014999,2]
[341878834,1731263445149,-500.0,0.00014999,2]
[341878835,1731263445162,-473.73125422,0.00014999,2]
[341878836,1731263445171,-625.0,0.00014999,2]
[341878837,1731263445180,-500.0,0.00014999,2]
[341878838,1731263445189,-500.0,0.00014999,2]
[341878839,1731263445199,-500.0,0.00014999,2]
[341878840,1731263445208,-500.0,0.00014999,2]
[341878841,1731263445217,-500.0,0.00014999,2]
[341878842,1731263445226,-500.0,0.00014999,2]
[341878843,1731263445236,-511.4,0.00014999,2]
[341878844,1731263445245,-500.0,0.00014999,2]
[341878845,1731263445254,-500.0,0.00014999,2]
[341878846,1731263445263,-500.0,0.00014999,2]
[341878847,1731263445273,-500.0,0.00014999,2]
[341878848,1731263445282,-500.0,0.00014999,2]
[341878849,1731263445291,-500.0,0.00014999,2]
[341878850,1731263445301,-500.0,0.00014999,2]
[341878851,1731263445310,-500.0,0.00014999,2]
[341878852,1731263445320,-500.0,0.00014999,2]
[341878853,1731263445328,-500.0,0.00014999,2]
[341878854,1731263445338,-500.0,0.00014999,2]
[341878855,1731263445348,-500.0,0.00014999,2]
[341878856,1731263445358,-500.0,0.00014999,2]
[341878857,1731263445367,-500.0,0.00014999,2]
[341878858,1731263445377,-500.0,0.00014999,2]
[341878859,1731263445387,-500.0,0.00014999,2]
[341878860,1731263445397,-500.0,0.00014999,2]
[341878861,1731263445408,-500.0,0.00014999,2]
[341878862,1731263445418,-500.0,0.00014999,2]
[341878863,1731263445427,-500.0,0.00014999,2]
[341878864,1731263445436,-205.26116194,0.00014999,2]
[341878865,1731263445447,-2313.64,0.00014999,2]
[341878866,1731263445457,-519.08103899,0.00014999,2]
[341878867,1731263445468,-1794.55896101,0.00014999,2]
[341878868,1731263445478,-2313.64,0.00014999,2]
[341878869,1731263445489,-2313.64,0.00014999,2]
[341878870,1731263445500,-2313.64,0.00014999,2]
[341878871,1731263445509,-2313.64,0.00014999,2]
[341878872,1731263445520,-2313.64,0.00014999,2]
[341878873,1731263445529,-2313.64,0.00014999,2]
[341878875,1731263445539,-2313.64,0.00014999,2]
[341878876,1731263445548,-2313.64,0.00014999,2]
[341878877,1731263445558,-2313.64,0.00014999,2]
[341878878,1731263445568,-2313.64,0.00014999,2]
[341878879,1731263445577,-2313.64,0.00014999,2]
[341878880,1731263445587,-2313.64,0.00014999,2]
[341878881,1731263445598,-2313.64,0.00014999,2]
[341878882,1731263445608,-2313.64,0.00014999,2]
[341878883,1731263445619,-2313.64,0.00014999,2]
[341878884,1731263445629,-2313.64,0.00014999,2]
[341878885,1731263445639,-2313.64,0.00014999,2]
[341878886,1731263445649,-2313.64,0.00014999,2]
[341878887,1731263445661,-2313.64,0.00014999,2]
[341878888,1731263445671,-2313.71897449,0.00014999,2]
[341878889,1731263445682,-262.5620645,0.00014999,2]
[341878891,1731263445694,-237.4379355,0.00014999,2]
[341878892,1731263445704,-500.0,0.00014999,2]
[341878893,1731263445716,-163.13694601,0.00014999,2]
[341878894,1731263445727,-304.0,0.00014999,2]
[341878895,1731263445738,-500.0,0.00014999,2]
[341878896,1731263445954,-500.0,0.00014999,2]
[341878897,1731263445969,-500.0,0.00014999,2]
[341878898,1731263445979,-500.0,0.00014999,2]
[341878899,1731263445990,-500.0,0.00014999,2]
[341878900,1731263446000,-500.0,0.00014999,2]
[341878901,1731263446011,-412.35214387,0.00014999,2]
[341878902,1731263446022,-796.64,0.00014999,2]
[341878903,1731263446032,-500.0,0.00014999,2]
[341878904,1731263446044,-796.64,0.00014999,2]
[341878905,1731263446054,-796.64,0.00014999,2]
[341878906,1731263446064,-796.64,0.00014999,2]
[341878907,1731263446074,-500.0,0.00014999,2]
[341878908,1731263446085,-500.0,0.00014999,2]
[341878909,1731263446095,-796.64,0.00014999,2]
[341878910,1731263446105,-500.0,0.00014999,2]
[341878911,1731263446115,-796.64,0.00014999,2]
[341878912,1731263446126,-500.0,0.00014999,2]
[341878913,1731263446136,-796.64,0.00014999,2]
[341878914,1731263446146,-500.0,0.00014999,2]
[341878915,1731263446156,-504.27352209,0.00014999,2]
[341878916,1731263446170,-796.64,0.00014999,2]
[341878917,1731263446180,-500.0,0.00014999,2]
[341878918,1731263446191,-500.0,0.00014999,2]
[341878919,1731263446200,-796.64,0.00014999,2]
[341878920,1731263446211,-500.0,0.00014999,2]
[341878921,1731263446222,-796.64,0.00014999,2]
[341878922,1731263446233,-500.0,0.00014999,2]
[341878923,1731263446244,-796.64,0.00014999,2]
[341878924,1731263446254,-500.0,0.00014999,2]
[341878925,1731263446264,-609.95945253,0.00014999,2]
[341878926,1731263446302,-500.0,0.00014774,2]
[341878927,1731263446313,-186.68054747,0.00014999,2]
[341878928,1731263446323,-500.0,0.00014999,2]
[341878929,1731263446332,-796.64,0.00014999,2]
[341878930,1731263446342,-796.64,0.00014999,2]
[341878931,1731263446354,-796.64,0.00014999,2]
[341878932,1731263446364,-500.0,0.00014999,2]
[341878933,1731263446375,-796.64,0.00014999,2]
[341878934,1731263446384,-500.0,0.00014999,2]
[341878935,1731263446394,-559.84284495,0.00014999,2]
[341878936,1731263446416,-236.79715505,0.00014999,2]
[341878937,1731263446428,-536.19296751,0.00014999,2]
[341878938,1731263446438,-796.64,0.00014999,2]
[341878939,1731263446449,-796.64,0.00014999,2]
[341878940,1731263446459,-796.64,0.00014999,2]
[341878941,1731263446470,-796.64,0.00014999,2]
[341878942,1731263446482,-796.64,0.00014999,2]
[341878943,1731263446493,-796.67481954,0.00014999,2]
[341878944,1731263446506,-500.0,0.00014999,2]
[341878945,1731263446517,-29.75165951,0.00014999,2]
[341878946,1731263446530,-316.00184048,0.00014999,2]
[341878947,1731263446539,-500.0,0.00014999,2]
[341878948,1731263446549,-500.0,0.00014999,2]
[341878949,1731263446558,-500.0,0.00014999,2]
[341878950,1731263446567,-500.0,0.00014999,2]
[341878951,1731263446577,-500.0,0.00014999,2]
[341878952,1731263446587,-500.0,0.00014999,2]
[341878953,1731263446598,-50.47010108,0.00014999,2]
[341878954,1731263446614,-449.52989892,0.00014999,2]
[341878955,1731263446624,-500.0,0.00014999,2]
[341878956,1731263446636,-500.0,0.00014999,2]
[341878957,1731263446646,-500.0,0.00014999,2]
[341878958,1731263446657,-500.0,0.00014999,2]
[341878959,1731263446668,-500.0,0.00014999,2]
[341878960,1731263446678,-500.0,0.00014999,2]
[341878961,1731263446688,-500.0,0.00014999,2]
[341878962,1731263446698,-500.0,0.00014999,2]
[341878963,1731263446708,-500.0,0.00014999,2]
[341878964,1731263446719,-509.49,0.00014999,2]
[341878965,1731263446729,-1820.39946753,0.00014999,2]
[341878966,1731263446772,-179.60053247,0.00014999,2]
[341878967,1731263446782,-1566.01469069,0.00014999,2]
[341878968,1731263446794,-433.98530931,0.00014999,2]
[341878969,1731263446804,-500.0,0.00014999,2]
[341878970,1731263446814,-500.0,0.00014999,2]
[341878971,1731263446824,-500.0,0.00014999,2]
[341878972,1731263446834,-500.0,0.00014999,2]
[341878973,1731263446843,-500.0,0.00014999,2]
[341878974,1731263446853,-500.0,0.00014999,2]
[341878976,1731263446863,-500.0,0.00014999,2]
[341878978,1731263446872,-2000.0,0.00014999,2]
[341878980,1731263446882,-500.0,0.00014999,2]
[341878982,1731263446891,-500.0,0.00014999,2]
[341878984,1731263446901,-500.0,0.00014999,2]
[341878986,1731263446913,-500.0,0.00014999,2]
[341878988,1731263446923,-500.0,0.00014999,2]
[341878990,1731263446934,-500.0,0.00014999,2]
[341878992,1731263446944,-500.0,0.00014999,2]
[341878994,1731263446954,-500.0,0.00014999,2]
[341878996,1731263446964,-5.19915512,0.00014999,2]
[341878997,1731263446980,-494.80084488,0.00014999,2]
[341878998,1731263446990,-500.0,0.00014999,2]
[341878999,1731263446999,-500.0,0.00014999,2]
[341879000,1731263447009,-403.16842139,0.00014999,2]
[341879001,1731263447019,-2000.0,0.00014999,2]
[341879002,1731263447029,-244.40416355,0.00014999,2]
[341879003,1731263447041,-255.59583645,0.00014999,2]
[341879004,1731263447054,-470.89848009,0.00014999,2]
[341879005,1731263447066,-29.10151991,0.00014999,2]
[341879006,1731263447075,-537.35190279,0.00014999,2]
[341879007,1731263447085,-500.0,0.00014999,2]
[341879008,1731263447094,-500.0,0.00014999,2]
[341879009,1731263447104,-500.0,0.00014999,2]
[341879010,1731263447113,-500.0,0.00014999,2]
[341879011,1731263447123,-420.92985301,0.00014999,2]
[341879012,1731263447134,-32.33994885,0.00014999,2]
[341879013,1731263447144,-500.0,0.00014999,2]
[341879014,1731263447154,-500.0,0.00014999,2]
[341879015,1731263447167,-500.0,0.00014999,2]
[341879016,1731263447177,-500.0,0.00014999,2]
[341879017,1731263447187,-500.0,0.00014999,2]
[341879018,1731263447196,-500.0,0.00014999,2]
[341879019,1731263447205,-500.0,0.00014999,2]
[341879020,1731263447214,-106.12161468,0.00014999,2]
[341879021,1731263447227,-393.87838532,0.00014999,2]
[341879022,1731263447236,-500.0,0.00014999,2]
[341879023,1731263447246,-500.0,0.00014999,2]
[341879024,1731263447255,-500.0,0.00014999,2]
[341879025,1731263447264,-265.57364027,0.00014999,2]
[341879026,1731263447276,-234.42635973,0.00014999,2]
[341879027,1731263447285,-500.0,0.00014999,2]
[341879028,1731263447295,-500.0,0.00014999,2]
[341879029,1731263447304,-500.0,0.00014999,2]
[341879030,1731263447313,-320.03441742,0.00014999,2]
[341879031,1731263447444,-260.70801435,0.00013698,2]
[341879032,1731263447454,-500.0,0.00013698,2]
[341879033,1731263447463,-429.76686319,0.00014774,2]
[341879034,1731263447472,-314.35174346,0.00014999,2]
[341879035,1731263447482,-752.13177375,0.00014999,2]
[341879036,1731263447493,-1247.86822625,0.00014999,2]
[341879037,1731263447503,-1731.13407977,0.00014999,2]
[341879038,1731263447515,-516.19538723,0.00014999,2]
[341879039,1731263447524,-2000.0,0.00014999,2]
[341879040,1731263447534,-720.57,0.00014999,2]
[341879041,1731263447543,-720.57,0.00014999,2]
[341879042,1731263447553,-720.57,0.00014999,2]
[341879043,1731263447562,-720.57,0.00014999,2]
[341879044,1731263447571,-720.57,0.00014999,2]
[341879045,1731263447581,-720.57,0.00014999,2]
[341879046,1731263447590,-720.57,0.00014999,2]
[341879047,1731263447599,-720.57,0.00014999,2]
[341879048,1731263447608,-720.57,0.00014999,2]
[341879049,1731263447618,-720.57,0.00014999,2]
[341879050,1731263447627,-720.57,0.00014999,2]
[341879051,1731263447637,-720.57,0.00014999,2]
[341879052,1731263447647,-720.57,0.00014999,2]
[341879053,1731263447656,-720.57,0.00014999,2]
[341879054,1731263447668,-720.57,0.00014999,2]
[341879055,1731263447677,-720.57,0.00014999,2]
[341879056,1731263447686,-720.57,0.00014999,2]
[341879057,1731263447696,-720.57,0.00014999,2]
[341879058,1731263447706,-720.57,0.00014999,2]
[341879059,1731263447715,-720.57,0.00014999,2]
[341879060,1731263447725,-720.57,0.00014999,2]
[341879061,1731263447734,-720.73803935,0.00014999,2]
[341879062,1731263447744,-500.0,0.00014999,2]
[341879063,1731263447754,-500.0,0.00014999,2]
[341879064,1731263447763,-615.37301097,0.00014999,2]
[341879065,1731263447773,-500.0,0.00014999,2]
[341879066,1731263447782,-500.0,0.00014999,2]
[341879067,1731263447791,-500.0,0.00014999,2]
[341879068,1731263447801,-500.0,0.00014999,2]
[341879069,1731263447811,-500.0,0.00014999,2]
[341879070,1731263447821,-500.0,0.00014999,2]
[341879071,1731263447830,-645.30290452,0.00014999,2]
[341879072,1731263447840,-646.94,0.00014999,2]
[341879073,1731263447849,-646.94,0.00014999,2]
[341879074,1731263447859,-646.94,0.00014999,2]
[341879075,1731263447868,-646.94,0.00014999,2]
[341879076,1731263447878,-646.94,0.00014999,2]
[341879077,1731263447887,-646.94,0.00014999,2]
[341879078,1731263447897,-646.94,0.00014999,2]
[341879079,1731263447907,-646.94,0.00014999,2]
[341879080,1731263447918,-646.94,0.00014999,2]
[341879081,1731263447927,-646.94,0.00014999,2]
[341879082,1731263447936,-646.94,0.00014999,2]
[341879083,1731263447946,-646.94,0.00014999,2]
[341879084,1731263447956,-646.94,0.00014999,2]
[341879085,1731263447969,-646.94,0.00014999,2]
[341879086,1731263447979,-646.94,0.00014999,2]
[341879087,1731263447988,-646.94,0.00014999,2]
[341879088,1731263447997,-646.94,0.00014999,2]
[341879089,1731263448007,-646.94,0.00014999,2]
[341879090,1731263448017,-75673.40883026,0.00015,2]
[341879091,1731263448037,-646.94,0.00014999,2]
[341879092,1731263448048,-3384.79,0.00015,2]
[341879093,1731263448061,-459.85939038,0.00015,2]
[341879094,1731263448272,-977.4851111,0.00015,2]
[341879095,1731263448537,-366.3390001,0.00015,2]
[341879096,1731263448549,-8082.3324,0.00015,2]
[341879097,1731263448560,-16170.7908,0.00015,2]
[341879098,1731263653485,3000.0,0.000383,120]
[341879099,1731263660467,807.0,0.000383,30]
[341879101,1731263871373,972898.29280589,0.00038299,30]
[341879102,1731263953765,-3921.87,0.00012567,2]
[341879103,1731263953792,-589.2137019,0.00013307,2]
[341879104,1731263953816,-1818.54,0.00013407,2]
[341879105,1731263953842,-211.43,0.00013696,2]
[341879106,1731263953865,-150.0,0.00013697,2]
[341879107,1731263953889,-297.84401312,0.00013698,2]
[341879108,1731263953914,-500.0,0.00013698,2]
[341879109,1731263953937,-500.0,0.00013698,2]
[341879110,1731263953961,-500.0,0.00013698,2]
[341879111,1731263953984,-500.0,0.00013698,2]
[341879112,1731263954009,-500.0,0.00013698,2]
[341879113,1731263954032,-500.0,0.00013698,2]
[341879114,1731263954058,-500.0,0.00013698,2]
[341879115,1731263954080,-500.0,0.00013698,2]
[341879116,1731263954103,-500.0,0.00013698,2]
[341879117,1731263954127,-500.0,0.00013698,2]
[341879118,1731263954153,-500.0,0.00013698,2]
[341879119,1731263954176,-508.67,0.00013698,2]
[341879120,1731263954198,-500.0,0.00013698,2]
[341879121,1731263954222,-500.0,0.00013698,2]
[341879122,1731263954244,-500.0,0.00013698,2]
[341879123,1731263954266,-500.0,0.00013698,2]
[341879124,1731263954291,-504.26741437,0.00013698,2]
[341879125,1731263954314,-500.0,0.00013698,2]
[341879126,1731263954336,-500.0,0.00013698,2]
[341879127,1731263954359,-500.0,0.00013698,2]
[341879128,1731263954381,-500.0,0.00013698,2]
[341879129,1731263954403,-500.0,0.00013698,2]
[341879130,1731263954428,-500.0,0.00013698,2]
[341879131,1731263954450,-500.0,0.00013698,2]
[341879132,1731263954472,-500.0,0.00013698,2]
[341879133,1731263954496,-498.16487061,0.00013698,2]
[341879134,1731263966987,-1.83512939,0.00013698,2]
[341879135,1731263967012,-500.0,0.00013698,2]
[341879136,1731263967041,-479.00382993,0.00013698,2]
[341879137,1731263967067,-494.0,0.00013698,2]
[341879138,1731263967091,-500.0,0.00013698,2]
[341879139,1731263967115,-500.0,0.00013698,2]
[341879140,1731263967141,-500.0,0.00013698,2]
[341879141,1731263967164,-500.0,0.00013698,2]
[341879142,1731263967188,-500.0,0.00013698,2]
[341879143,1731263967410,-500.0,0.00013698,2]
[341879144,1731263967437,-500.0,0.00013698,2]
[341879145,1731263967463,-534.84,0.00013698,2]
[341879146,1731263967487,-500.0,0.00013698,2]
[341879147,1731263967511,-500.0,0.00013698,2]
[341879148,1731263967535,-500.0,0.00013698,2]
[341879149,1731263967561,-500.0,0.00013698,2]
[341879150,1731263967584,-500.0,0.00013698,2]
[341879151,1731263967607,-500.0,0.00013698,2]
[341879152,1731263967631,-500.0,0.00013698,2]
[341879153,1731263967655,-500.0,0.00013698,2]
[341879154,1731263967686,-500.0,0.00013698,2]
[341879155,1731263967711,-500.0,0.00013698,2]
[341879156,1731263967735,-500.0,0.00013698,2]
[341879157,1731263967759,-500.0,0.00013698,2]
[341879158,1731263967783,-500.0,0.00013698,2]
[341879159,1731263967809,-500.0,0.00013698,2]
[341879160,1731263967832,-888.31,0.00013698,2]
[341879161,1731263967855,-500.0,0.00013698,2]
[341879162,1731263967878,-500.0,0.00013698,2]
[341879163,1731263967901,-500.0,0.00013698,2]
[341879164,1731263967924,-837.74,0.00013698,2]
[341879165,1731263967948,-500.0,0.00013698,2]
[341879166,1731263967970,-500.0,0.00013698,2]
[341879167,1731263967993,-23264.27104068,0.00013698,2]
[341879169,1731264042381,150.0,0.000131,5]
[341879170,1731264043835,1089.22,0.00011857,2]
[341879172,1731264096484,-798.27,0.00013698,2]
[341879173,1731264096509,-500.0,0.00013698,2]
[341879174,1731264096535,-500.0,0.00013698,2]
[341879175,1731264096560,-500.0,0.00013698,2]
[341879176,1731264097357,500.0,0.00013698,2]
[341879177,1731264104923,249.63,0.00012567,2]
[341879178,1731264109100,500.0,0.00013698,2]
[341879180,1731264210615,250.0,0.00013697,2]
[341879181,1731264225533,508.68616912,0.00013698,2]
[341879182,1731264228796,500.0,0.00013698,2]
[341879184,1731264363681,500.0,0.00013698,2]
[341879185,1731264364446,966.71,0.00027,60]
[341879186,1731264374887,966.71,0.00027,60]
[341879187,1731264381528,966.71,0.00027,60]
[341879188,1731264388762,962.23,0.00027,60]
[341879190,1731264433156,-635.72895932,0.00013698,2]
[341879191,1731264433181,-165.8,0.00013726,2]
[341879192,1731264433205,-300.0,0.00013732,2]
[341879193,1731264433228,-1649.9,0.00013736,2]
[341879194,1731264433251,-250.0,0.00013741,2]
[341879195,1731264433276,-164.31,0.00013742,2]
[341879196,1731264433308,-150.0,0.00013753,2]
[341879197,1731264433337,-654.77892386,0.0001376,2]
[341879198,1731264435122,1780.74,0.00013689,2]
[341879199,1731264445321,-292.66241817,0.0001376,2]
[341879200,1731264481079,523.13,0.00013698,2]
[341879202,1731264509636,389.54383088,0.00013698,2]
[341879217,1731264631986,-184.72616912,0.00013698,2]
[341879218,1731264631995,-500.0,0.00013698,2]
[341879219,1731264632006,-123.17383088,0.00013698,2]
[341879220,1731264632019,-376.82616912,0.00013698,2]
[341879221,1731264632029,-52.55865797,0.0001376,2]
[341879222,1731264632040,-2398.02,0.00013833,2]
[341879223,1731264632049,-855.45,0.00013856,2]
[341879224,1731264632059,-200.0,0.00013901,2]
[341879225,1731264632068,-150.0,0.00014063,2]
[341879226,1731264632077,-459.92470681,0.00014064,2]
[341879227,1731264632121,-794.07529319,0.00014064,2]
[341879228,1731264632130,-453.0,0.00014064,2]
[341879229,1731264632139,-150.0,0.00014064,2]
[341879230,1731264632148,-1990.0,0.00014064,2]
[341879231,1731264632158,-559.0,0.00014064,2]
[341879232,1731264632167,-1922.0,0.00014064,2]
[341879233,1731264632176,-2910.0,0.00014064,2]
[341879234,1731264632185,-1259.0,0.00014064,2]
[341879235,1731264632195,-921.0,0.00014064,2]
[341879236,1731264632204,-814.0,0.00014064,2]
[341879237,1731264632213,-3465.0,0.00014064,2]
[341879238,1731264632222,-150.0,0.00014064,2]
[341879239,1731264632231,-5927.0,0.00014064,2]
[341879240,1731264632240,-1159.0,0.00014064,2]
[341879241,1731264632249,-150.0,0.00014064,2]
[341879242,1731264632258,-1089.22,0.0001412,2]
[341879243,1731264632268,-253.73,0.000142,2]
[341879244,1731264632277,-432.32,0.000142,2]
[341879245,1731264632286,-150.0,0.000142,2]
[341879246,1731264632296,-762.58,0.000142,2]
[341879247,1731264632305,-432.32,0.000142,2]
[341879248,1731264632314,-762.58,0.000142,2]
[341879249,1731264632324,-762.58,0.000142,2]
[341879250,1731264632333,-432.32,0.000142,2]
[341879251,1731264632346,-227.61,0.000142,2]
[341879252,1731264632358,-165.8,0.00014412,2]
[341879253,1731264632367,-607.69,0.00014412,2]
[341879254,1731264632376,-1436.3,0.00014412,2]
[341879255,1731264632386,-762.58,0.000145,2]
[341879256,1731264632395,-762.58,0.000145,2]
[341879257,1731264632405,-251.73,0.000145,2]
[341879258,1731264632415,-426.22825879,0.00014657,2]
[341879259,1731264632426,-762.58,0.000147,2]
[341879260,1731264632436,-432.32,0.000147,2]
[341879261,1731264632446,-432.32,0.000147,2]
[341879262,1731264632455,-762.58,0.000147,2]
[341879263,1731264632465,-409.47,0.000147,2]
[341879264,1731264632474,-762.58,0.000147,2]
[341879265,1731264632484,-6017.7781,0.00014722,2]
[341879266,1731264632493,-4996.33,0.000149,2]
[341879267,1731264632502,-1257.12144468,0.000149,2]
[341879268,1731264632512,-1257.12144468,0.000149,2]
[341879269,1731264632522,-374.9471091,0.000149,2]
[341879270,1731264632532,-250.1317179,0.000149,4]
[341879271,1731264632541,-1257.12144468,0.000149,2]
[341879272,1731264632551,-191.18320302,0.000149,2]
[341879273,1731264632560,-36073.91960272,0.000149,2]
[341879274,1731264632570,-504.65260855,0.00014963,2]
[341879275,1731264632579,-3728.112,0.00014971,2]
[341879276,1731264632589,-174.469,0.00014971,2]
[341879277,1731264632602,-245.07520013,0.00014973,2]
[341879278,1731264632612,-160.05140719,0.00014973,2]
[341879279,1731264632621,-500.0,0.00014973,2]
[341879280,1731264632631,-500.0,0.00014973,2]
[341879281,1731264632641,-4129.0,0.00014986,2]
[341879282,1731264632651,-759.8,0.00014988,3]
[341879283,1731264632660,-184.39,0.00014989,2]
[341879284,1731264632670,-500.0,0.00014989,2]
[341879285,1731264632680,-201.27859228,0.0001499,2]
[341879286,1731264632690,-201.27859228,0.0001499,2]
[341879287,1731264632700,-591.34,0.00014998,2]
[341879288,1731264632709,-500.0,0.00014998,2]
[341879289,1731264632719,-888.31,0.00014998,2]
[341879290,1731264632728,-595.19566077,0.00014998,2]
[341879291,1731264632738,-500.0,0.00014998,2]
[341879292,1731264632748,-500.0,0.00014998,2]
[341879293,1731264632757,-500.0,0.00014998,2]
[341879294,1731264632767,-500.0,0.00014998,2]
[341879295,1731264632776,-509.68285211,0.00014998,2]
[341879296,1731264632786,-509.72690329,0.00014998,2]
[341879297,1731264632795,-513.09899634,0.00014998,2]
[341879298,1731264632805,-500.0,0.00014998,2]
[341879299,1731264632814,-529.20177189,0.00014998,2]
[341879300,1731264632824,-500.0,0.00014998,2]
[341879301,1731264632833,-342.59,0.00014998,2]
[341879302,1731264632845,-500.0,0.00014998,2]
[341879303,1731264632855,-500.0,0.00014998,2]
[341879304,1731264632864,-500.0,0.00014998,2]
[341879305,1731264632874,-500.0,0.00014998,2]
[341879306,1731264632883,-500.0,0.00014998,2]
[341879307,1731264632893,-500.0,0.00014998,2]
[341879308,1731264632902,-500.0,0.00014998,2]
[341879309,1731264632911,-500.0,0.00014998,2]
[341879310,1731264632920,-625.22,0.00014998,2]
[341879311,1731264632930,-500.0,0.00014998,2]
[341879312,1731264632939,-500.0,0.00014998,2]
[341879313,1731264632948,-500.0,0.00014998,2]
[341879314,1731264632957,-500.0,0.00014998,2]
[341879315,1731264632966,-500.0,0.00014998,2]
[341879317,1731264632975,-500.0,0.00014998,2]
[341879319,1731264632985,-500.0,0.00014998,2]
[341879321,1731264632994,-500.0,0.00014998,2]
[341879323,1731264633004,-573.94,0.00014998,2]
[341879324,1731264633013,-500.0,0.00014998,2]
[341879348,1731264633227,-500.0,0.00014998,2]
[341879350,1731264633237,-500.0,0.00014998,2]
[341879352,1731264633247,-500.0,0.00014998,2]
[341879354,1731264633257,-500.0,0.00014998,2]
[341879356,1731264633266,-500.0,0.00014998,2]
[341879358,1731264633276,-500.0,0.00014998,2]
[341879360,1731264633286,-500.0,0.00014998,2]
[341879362,1731264633295,-500.0,0.00014998,2]
[341879364,1731264633305,-500.0,0.00014998,2]
[341879366,1731264633314,-500.0,0.00014998,2]
[341879368,1731264633324,-500.0,0.00014998,2]
[341879370,1731264633333,-500.0,0.00014998,2]
[341879372,1731264633342,-500.0,0.00014998,2]
[341879374,1731264633353,-510.02643888,0.00014998,2]
[341879376,1731264633366,-500.0,0.00014998,2]
[341879378,1731264633375,-500.0,0.00014998,2]
[341879380,1731264633386,-500.0,0.00014998,2]
[341879382,1731264633395,-500.0,0.00014998,2]
[341879384,1731264633405,-500.0,0.00014998,2]
[341879386,1731264633416,-500.0,0.00014998,2]
[341879388,1731264633425,-500.0,0.00014998,2]
[341879389,1731264633437,-500.0,0.00014998,2]
[341879390,1731264633446,-500.0,0.00014998,2]
[341879391,1731264633456,-500.0,0.00014998,2]